[Event "Late-Titled-Tuesday-Blitz-February-13-2024"]
[Site "Chess.com"]
[Date "2024.02.13"]
[Round "1"]
[White "trriinu"]
[Black "Lady_Nika"]
[Result "0-1"]
[WhiteElo "2235"]
[BlackElo "2587"]
[TimeControl "180+1"]
[EndTime "14:09:05 PST"]
[Termination "Lady_Nika won on time"]

1. e4 {[%clk 0:02:56.2]} 1... e6 {[%clk 0:03:00]} 2. d4 {[%clk 0:02:56.1]} 2...
d5 {[%clk 0:03:00.3]} 3. Nd2 {[%clk 0:02:55.7]} 3... Nf6 {[%clk 0:03:00.6]} 4.
e5 {[%clk 0:02:55.1]} 4... Nfd7 {[%clk 0:03:00.9]} 5. Bd3 {[%clk 0:02:55.9]}
5... c5 {[%clk 0:03:01.3]} 6. c3 {[%clk 0:02:56.7]} 6... Nc6 {[%clk 0:03:01.8]}
7. Ne2 {[%clk 0:02:57.3]} 7... Be7 {[%clk 0:03:01.9]} 8. O-O {[%clk 0:02:57.4]}
8... O-O {[%clk 0:03:00.7]} 9. f4 {[%clk 0:02:56.1]} 9... f5 {[%clk 0:03:00]}
10. Nf3 {[%clk 0:02:49.2]} 10... a6 {[%clk 0:02:56.5]} 11. Ng5 {[%clk
0:02:40.7]} 11... Bxg5 {[%clk 0:02:52.5]} 12. fxg5 {[%clk 0:02:40.8]} 12... cxd4
{[%clk 0:02:52.8]} 13. cxd4 {[%clk 0:02:40.9]} 13... b5 {[%clk 0:02:48.4]} 14.
Be3 {[%clk 0:02:29.6]} 14... Nb6 {[%clk 0:02:42.6]} 15. b3 {[%clk 0:02:28.8]}
15... Ne7 {[%clk 0:02:29]} 16. h4 {[%clk 0:02:16.7]} 16... Nd7 {[%clk
0:02:24.6]} 17. Nf4 {[%clk 0:02:11.7]} 17... Qb6 {[%clk 0:02:24.4]} 18. Qe2
{[%clk 0:01:32.6]} 18... Bb7 {[%clk 0:02:22.7]} 19. Rad1 {[%clk 0:01:32]} 19...
Rfc8 {[%clk 0:02:21.7]} 20. Bf2 {[%clk 0:01:10.2]} 20... Nf8 {[%clk 0:02:14.5]}
21. h5 {[%clk 0:01:09.7]} 21... Rc3 {[%clk 0:02:12.8]} 22. Kh1 {[%clk
0:01:05.9]} 22... Rac8 {[%clk 0:02:12.1]} 23. Be1 {[%clk 0:01:06.2]} 23... R3c7
{[%clk 0:01:59.2]} 24. Bb4 {[%clk 0:01:05.1]} 24... Rd7 {[%clk 0:01:39.9]} 25.
Rf3 {[%clk 0:00:58.9]} 25... Qxd4 {[%clk 0:01:21.5]} 26. Bxe7 {[%clk 0:00:28.8]}
26... Rxe7 {[%clk 0:01:20.7]} 27. Bxf5 {[%clk 0:00:29.1]} 27... Qb6 {[%clk
0:01:19.9]} 28. Bb1 {[%clk 0:00:27]} 28... Rd7 {[%clk 0:01:04.4]} 29. Rdf1
{[%clk 0:00:22.6]} 29... d4 {[%clk 0:01:02.1]} 30. Rg3 {[%clk 0:00:14.3]} 30...
Rc3 {[%clk 0:00:57.5]} 31. Qg4 {[%clk 0:00:05.4]} 31... Rxg3 {[%clk 0:00:56.2]}
32. Qxg3 {[%clk 0:00:05.8]} 32... Qc5 {[%clk 0:00:51.8]} 33. g6 {[%clk
0:00:05.6]} 33... Qxe5 {[%clk 0:00:46.9]} 34. gxh7+ {[%clk 0:00:05.2]} 34...
Nxh7 {[%clk 0:00:47]} 35. Bxh7+ {[%clk 0:00:04.1]} 35... Kxh7 {[%clk 0:00:41]}
36. Qg6+ {[%clk 0:00:04.4]} 36... Kh8 {[%clk 0:00:39.4]} 37. Qe8+ {[%clk
0:00:04.5]} 37... Kh7 {[%clk 0:00:39.6]} 38. Qxd7 {[%clk 0:00:04.9]} 38... Bxg2+
{[%clk 0:00:15]} 39. Nxg2 {[%clk 0:00:04.7]} 39... Qxh5+ {[%clk 0:00:14.7]} 40.
Kg1 {[%clk 0:00:05.2]} 40... Qe5 {[%clk 0:00:08.4]} 41. Qc6 {[%clk 0:00:03.3]}
41... d3 {[%clk 0:00:07.1]} 42. Qf3 {[%clk 0:00:03.3]} 42... Qd4+ {[%clk
0:00:07]} 43. Qf2 {[%clk 0:00:02.8]} 43... Qd5 {[%clk 0:00:05.4]} 44. Qh4+
{[%clk 0:00:02.9]} 44... Kg8 {[%clk 0:00:05.3]} 45. Qf4 {[%clk 0:00:02.6]} 45...
e5 {[%clk 0:00:05.2]} 46. Qf8+ {[%clk 0:00:02.4]} 46... Kh7 {[%clk 0:00:05.6]}
47. Qf5+ {[%clk 0:00:02.7]} 47... Kh8 {[%clk 0:00:05.2]} 48. Qh5+ {[%clk
0:00:02.6]} 48... Kg8 {[%clk 0:00:05.3]} 49. Ne3 {[%clk 0:00:02.7]} 49... Qd4
{[%clk 0:00:05.6]} 50. Qe8+ {[%clk 0:00:02.9]} 50... Kh7 {[%clk 0:00:05.9]} 51.
Qh5+ {[%clk 0:00:03.8]} 51... Kg8 {[%clk 0:00:06.1]} 52. Qf3 {[%clk 0:00:04]}
52... d2 {[%clk 0:00:04.9]} 53. Rd1 {[%clk 0:00:04.3]} 53... e4 {[%clk
0:00:04.7]} 54. Qe2 {[%clk 0:00:04.7]} 54... Qe5 {[%clk 0:00:04.8]} 55. Rxd2
{[%clk 0:00:05.2]} 55... Qg5+ {[%clk 0:00:05.3]} 56. Kf1 {[%clk 0:00:05.6]}
56... Qf4+ {[%clk 0:00:05.4]} 57. Qf2 {[%clk 0:00:05.4]} 57... Qg5 {[%clk
0:00:05.5]} 58. Rd5 {[%clk 0:00:05]} 58... Qe7 {[%clk 0:00:04.9]} 59. Rf5 {[%clk
0:00:05]} 59... Qa3 {[%clk 0:00:04.6]} 60. Rf8+ {[%clk 0:00:05]} 60... Qxf8
{[%clk 0:00:04.6]} 61. Qxf8+ {[%clk 0:00:05.3]} 61... Kxf8 {[%clk 0:00:05.5]}
62. Kg2 {[%clk 0:00:06.2]} 62... Ke7 {[%clk 0:00:06.3]} 63. Kg3 {[%clk
0:00:06.8]} 63... Kd6 {[%clk 0:00:06.2]} 64. Kf4 {[%clk 0:00:07.4]} 64... Kc5
{[%clk 0:00:06.7]} 65. Nc2 {[%clk 0:00:06.6]} 65... Kd5 {[%clk 0:00:06.6]} 66.
Nb4+ {[%clk 0:00:05.9]} 66... Kd4 {[%clk 0:00:07]} 67. Nxa6 {[%clk 0:00:04.1]}
67... e3 {[%clk 0:00:07.2]} 68. Nb4 {[%clk 0:00:02]} 68... e2 {[%clk 0:00:04.9]}
0-1

[Event "Late-Titled-Tuesday-Blitz-February-13-2024"]
[Site "Chess.com"]
[Date "2024.02.13"]
[Round "1"]
[White "AnkitGajwa"]
[Black "GianmarcoVaR"]
[Result "0-1"]
[WhiteElo "2381"]
[BlackElo "2720"]
[TimeControl "180+1"]
[EndTime "14:09:27 PST"]
[Termination "GianmarcoVaR won by resignation"]

1. e4 {[%clk 0:02:54.3]} 1... c5 {[%clk 0:02:44.4]} 2. Nf3 {[%clk 0:02:54.2]}
2... d6 {[%clk 0:02:44.1]} 3. d4 {[%clk 0:02:54.2]} 3... cxd4 {[%clk 0:02:42.2]}
4. Nxd4 {[%clk 0:02:55.1]} 4... Nf6 {[%clk 0:02:41.7]} 5. Nc3 {[%clk 0:02:55.8]}
5... a6 {[%clk 0:02:37.8]} 6. Bg5 {[%clk 0:02:55.7]} 6... Nbd7 {[%clk
0:02:36.6]} 7. Qe2 {[%clk 0:02:55.6]} 7... h6 {[%clk 0:02:01.3]} 8. Bxf6 {[%clk
0:02:55.1]} 8... Nxf6 {[%clk 0:02:01.1]} 9. O-O-O {[%clk 0:02:56]} 9... g6
{[%clk 0:01:43.4]} 10. f4 {[%clk 0:02:48.7]} 10... e5 {[%clk 0:01:27.4]} 11.
fxe5 {[%clk 0:02:47.9]} 11... dxe5 {[%clk 0:01:27.5]} 12. Ne6 {[%clk 0:02:43]}
12... Qa5 {[%clk 0:01:13.8]} 13. Rd8+ {[%clk 0:02:25.5]} 13... Ke7 {[%clk
0:01:13.9]} 14. Qd2 {[%clk 0:02:25.5]} 14... fxe6 {[%clk 0:01:07]} 15. Nd5+
{[%clk 0:02:18.1]} 15... Qxd5 {[%clk 0:00:55.7]} 16. exd5 {[%clk 0:02:01.8]}
16... Kxd8 {[%clk 0:00:53.7]} 17. dxe6+ {[%clk 0:02:01.9]} 17... Ke7 {[%clk
0:00:52.3]} 18. Qb4+ {[%clk 0:01:53.5]} 18... Ke8 {[%clk 0:00:30]} 19. Qb3
{[%clk 0:01:31.2]} 19... Bd6 {[%clk 0:00:23.8]} 20. Bd3 {[%clk 0:01:27.9]} 20...
Ke7 {[%clk 0:00:20.7]} 21. Rf1 {[%clk 0:01:21.7]} 21... b5 {[%clk 0:00:15]} 22.
Bxg6 {[%clk 0:01:18.8]} 22... Bxe6 {[%clk 0:00:14.2]} 23. Qf3 {[%clk 0:01:18.5]}
23... Raf8 {[%clk 0:00:12]} 24. Qb7+ {[%clk 0:01:18.5]} 24... Nd7 {[%clk
0:00:11.5]} 25. Rd1 {[%clk 0:01:14.1]} 25... Rhg8 {[%clk 0:00:10.1]} 26. Be4
{[%clk 0:01:13.4]} 26... Rb8 {[%clk 0:00:09.3]} 27. Qxa6 {[%clk 0:01:13.4]}
27... Rb6 {[%clk 0:00:09.8]} 28. Qa7 {[%clk 0:01:10.2]} 28... Rc8 {[%clk
0:00:05.6]} 29. Kb1 {[%clk 0:00:52.7]} 29... b4 {[%clk 0:00:05.9]} 30. Qa4
{[%clk 0:00:47.5]} 30... Bc5 {[%clk 0:00:05.5]} 31. Bd5 {[%clk 0:00:40.8]} 31...
Bd4 {[%clk 0:00:05.1]} 32. Bxe6 {[%clk 0:00:41.1]} 32... Kxe6 {[%clk 0:00:05.3]}
33. Qb3+ {[%clk 0:00:41.3]} 33... Ke7 {[%clk 0:00:05.1]} 34. Qh3 {[%clk
0:00:40.9]} 34... Rf8 {[%clk 0:00:04.4]} 35. Qh4+ {[%clk 0:00:38.1]} 35... Rbf6
{[%clk 0:00:03.7]} 36. Qe4 {[%clk 0:00:32]} 36... Nc5 {[%clk 0:00:03.5]} 37. Qe2
{[%clk 0:00:31.6]} 37... Rf2 {[%clk 0:00:03.4]} 38. Qe1 {[%clk 0:00:31.5]} 38...
Rxg2 {[%clk 0:00:03.2]} 39. Rxd4 {[%clk 0:00:31.5]} 39... Nd7 {[%clk 0:00:02.5]}
40. Rd1 {[%clk 0:00:30.7]} 40... Rgf2 {[%clk 0:00:02.5]} 41. Qxb4+ {[%clk
0:00:30.8]} 41... Ke6 {[%clk 0:00:02.8]} 42. Qc4+ {[%clk 0:00:30.9]} 42... Ke7
{[%clk 0:00:03.1]} 43. Qc7 {[%clk 0:00:31.2]} 43... Rd8 {[%clk 0:00:02.9]} 44.
a4 {[%clk 0:00:30.9]} 44... Rf6 {[%clk 0:00:01.7]} 45. a5 {[%clk 0:00:30.8]}
45... Re6 {[%clk 0:00:02]} 46. Rd5 {[%clk 0:00:28.7]} 46... e4 {[%clk
0:00:02.1]} 47. Rd2 {[%clk 0:00:25.2]} 47... e3 {[%clk 0:00:02.3]} 48. Re2
{[%clk 0:00:25.8]} 48... Rf8 {[%clk 0:00:02.5]} 49. Qg3 {[%clk 0:00:24.7]} 49...
Rf1+ {[%clk 0:00:02.3]} 50. Ka2 {[%clk 0:00:25]} 50... Rf5 {[%clk 0:00:02]} 51.
b4 {[%clk 0:00:23.3]} 51... Rfe5 {[%clk 0:00:02.1]} 52. Qh4+ {[%clk 0:00:23.5]}
52... Nf6 {[%clk 0:00:02.4]} 53. Qc4 {[%clk 0:00:23.2]} 53... Nd5 {[%clk
0:00:02.2]} 54. a6 {[%clk 0:00:22.6]} 54... Kd6 {[%clk 0:00:01.4]} 55. a7 {[%clk
0:00:22.1]} 55... Re8 {[%clk 0:00:02]} 56. Qc5+ {[%clk 0:00:21.5]} 56... Kd7
{[%clk 0:00:02.6]} 57. Kb3 {[%clk 0:00:21.8]} 57... Nc7 {[%clk 0:00:02.5]} 58.
Re1 {[%clk 0:00:19.7]} 58... Rxc5 {[%clk 0:00:02.9]} 59. bxc5 {[%clk 0:00:19.6]}
59... Kc6 {[%clk 0:00:03.6]} 60. Kc4 {[%clk 0:00:19.7]} 60... Re4+ {[%clk
0:00:03.3]} 61. Kd3 {[%clk 0:00:19.9]} 61... Ra4 {[%clk 0:00:04.1]} 62. Rxe3
{[%clk 0:00:20]} 62... Rxa7 {[%clk 0:00:04.8]} 63. Kc4 {[%clk 0:00:19.2]} 63...
Ra4+ {[%clk 0:00:05.1]} 64. Kb3 {[%clk 0:00:19.6]} 64... Rh4 {[%clk 0:00:06]}
65. h3 {[%clk 0:00:19.1]} 65... Nd5 {[%clk 0:00:05.6]} 66. Rg3 {[%clk
0:00:19.1]} 66... Kxc5 {[%clk 0:00:05.9]} 67. c4 {[%clk 0:00:19.7]} 67... Rxc4
{[%clk 0:00:05.6]} 68. Rg6 {[%clk 0:00:20.2]} 68... Rb4+ {[%clk 0:00:05.7]} 69.
Ka3 {[%clk 0:00:20.4]} 69... Rh4 {[%clk 0:00:06.6]} 70. Ra6 {[%clk 0:00:20.4]}
70... Rxh3+ {[%clk 0:00:06.5]} 71. Kb2 {[%clk 0:00:20.7]} 71... Nb4 {[%clk
0:00:06.2]} 72. Ra5+ {[%clk 0:00:20.5]} 72... Kc4 {[%clk 0:00:06.7]} 73. Rf5
{[%clk 0:00:21.1]} 73... Rh2+ {[%clk 0:00:06.8]} 74. Kc1 {[%clk 0:00:21.2]}
74... Kc3 {[%clk 0:00:07.3]} 75. Rf3+ {[%clk 0:00:21.4]} 75... Nd3+ {[%clk
0:00:07.5]} 76. Kb1 {[%clk 0:00:20.7]} 76... Rb2+ {[%clk 0:00:06.3]} 77. Ka1
{[%clk 0:00:21]} 77... Rb6 {[%clk 0:00:07.2]} 78. Ka2 {[%clk 0:00:19.6]} 78...
Kc2 {[%clk 0:00:06.7]} 79. Rxd3 {[%clk 0:00:14.7]} 79... Kxd3 {[%clk 0:00:07]}
0-1

[Event "Late-Titled-Tuesday-Blitz-February-13-2024"]
[Site "Chess.com"]
[Date "2024.02.13"]
[Round "1"]
[White "Mikhail_Bryakin"]
[Black "MusicCityMaster"]
[Result "0-1"]
[WhiteElo "2787"]
[BlackElo "2441"]
[TimeControl "180+1"]
[EndTime "14:09:49 PST"]
[Termination "MusicCityMaster won on time"]

1. e4 {[%clk 0:02:59.8]} 1... e6 {[%clk 0:02:59.4]} 2. d4 {[%clk 0:02:58.2]}
2... d5 {[%clk 0:03:00.3]} 3. Nd2 {[%clk 0:02:51]} 3... Nc6 {[%clk 0:02:59.4]}
4. Ngf3 {[%clk 0:02:41.3]} 4... Nf6 {[%clk 0:02:58.5]} 5. e5 {[%clk 0:02:33.9]}
5... Nd7 {[%clk 0:02:58.1]} 6. c3 {[%clk 0:02:34.3]} 6... f6 {[%clk 0:02:54.3]}
7. exf6 {[%clk 0:02:25.3]} 7... Qxf6 {[%clk 0:02:50.3]} 8. Bd3 {[%clk
0:02:20.5]} 8... Bd6 {[%clk 0:02:49.1]} 9. Nf1 {[%clk 0:02:16.8]} 9... O-O
{[%clk 0:02:43.7]} 10. Ng3 {[%clk 0:02:12.8]} 10... e5 {[%clk 0:02:35.8]} 11.
dxe5 {[%clk 0:02:12.6]} 11... Ndxe5 {[%clk 0:02:34.7]} 12. Be2 {[%clk 0:02:13]}
12... Bg4 {[%clk 0:02:15.1]} 13. Qxd5+ {[%clk 0:01:50.9]} 13... Kh8 {[%clk
0:02:14.2]} 14. O-O {[%clk 0:01:50.3]} 14... Bxf3 {[%clk 0:01:50.3]} 15. Bxf3
{[%clk 0:01:34]} 15... Nxf3+ {[%clk 0:01:49.1]} 16. Qxf3 {[%clk 0:01:34.5]}
16... Qxf3 {[%clk 0:01:46.7]} 17. gxf3 {[%clk 0:01:35.4]} 17... Rxf3 {[%clk
0:01:40.5]} 18. Kg2 {[%clk 0:01:36.3]} 18... Raf8 {[%clk 0:01:39.4]} 19. Be3
{[%clk 0:01:27.3]} 19... h6 {[%clk 0:01:19.6]} 20. Rad1 {[%clk 0:01:26]} 20...
Kh7 {[%clk 0:01:19.2]} 21. Ne4 {[%clk 0:01:20.9]} 21... Be5 {[%clk 0:01:07.7]}
22. Rd7 {[%clk 0:01:18.4]} 22... R3f7 {[%clk 0:01:01.5]} 23. Rxf7 {[%clk
0:01:17.3]} 23... Rxf7 {[%clk 0:01:02.4]} 24. Rd1 {[%clk 0:00:59.1]} 24... b6
{[%clk 0:01:00]} 25. Ng3 {[%clk 0:00:51.7]} 25... g5 {[%clk 0:00:58.4]} 26. Ne4
{[%clk 0:00:46.8]} 26... Kg6 {[%clk 0:00:57.9]} 27. h3 {[%clk 0:00:45.7]} 27...
h5 {[%clk 0:00:52.7]} 28. Nd2 {[%clk 0:00:39.7]} 28... g4 {[%clk 0:00:43.8]} 29.
hxg4 {[%clk 0:00:37.9]} 29... hxg4 {[%clk 0:00:44.7]} 30. Nc4 {[%clk 0:00:37.7]}
30... Bg7 {[%clk 0:00:44]} 31. Rd5 {[%clk 0:00:35.9]} 31... Bf6 {[%clk
0:00:39.2]} 32. Kg3 {[%clk 0:00:34.2]} 32... Ne7 {[%clk 0:00:39]} 33. Ne5+
{[%clk 0:00:26.3]} 33... Bxe5+ {[%clk 0:00:38.4]} 34. Rxe5 {[%clk 0:00:27.2]}
34... Nf5+ {[%clk 0:00:33.4]} 35. Kxg4 {[%clk 0:00:27.3]} 35... Nxe3+ {[%clk
0:00:34]} 36. fxe3 {[%clk 0:00:28.2]} 36... Rf2 {[%clk 0:00:34.1]} 37. Rb5
{[%clk 0:00:28.9]} 37... Kf6 {[%clk 0:00:29.1]} 38. Kg3 {[%clk 0:00:28.7]} 38...
Rf1 {[%clk 0:00:25.1]} 39. Kg2 {[%clk 0:00:27.7]} 39... Ra1 {[%clk 0:00:22.5]}
40. a3 {[%clk 0:00:26.9]} 40... Rb1 {[%clk 0:00:23.1]} 41. Kf3 {[%clk
0:00:26.9]} 41... Ke6 {[%clk 0:00:22.9]} 42. Ke4 {[%clk 0:00:27.3]} 42... a6
{[%clk 0:00:22.1]} 43. Rb4 {[%clk 0:00:27.2]} 43... a5 {[%clk 0:00:21.7]} 44.
Rb5 {[%clk 0:00:27.1]} 44... Kd6 {[%clk 0:00:22.2]} 45. Kd3 {[%clk 0:00:24.5]}
45... Kc6 {[%clk 0:00:22.3]} 46. c4 {[%clk 0:00:24.9]} 46... Rd1+ {[%clk
0:00:21]} 47. Kc2 {[%clk 0:00:25.2]} 47... Re1 {[%clk 0:00:21.1]} 48. Re5 {[%clk
0:00:25.8]} 48... Re2+ {[%clk 0:00:20.8]} 49. Kc3 {[%clk 0:00:25.8]} 49... Re1
{[%clk 0:00:21]} 50. b4 {[%clk 0:00:23.2]} 50... Ra1 {[%clk 0:00:16]} 51. Kb2
{[%clk 0:00:23.8]} 51... Re1 {[%clk 0:00:14.8]} 52. Kb3 {[%clk 0:00:24]} 52...
Rb1+ {[%clk 0:00:12.4]} 53. Kc2 {[%clk 0:00:19.1]} 53... Ra1 {[%clk 0:00:12.6]}
54. Kb2 {[%clk 0:00:15.2]} 54... Re1 {[%clk 0:00:11.5]} 55. bxa5 {[%clk
0:00:15.8]} 55... bxa5 {[%clk 0:00:11]} 56. Kb3 {[%clk 0:00:16.4]} 56... Rb1+
{[%clk 0:00:09.2]} 57. Ka4 {[%clk 0:00:16.5]} 57... Rc1 {[%clk 0:00:09.4]} 58.
Re4 {[%clk 0:00:16.8]} 58... Kb6 {[%clk 0:00:07.5]} 59. Kb3 {[%clk 0:00:13.9]}
59... Rb1+ {[%clk 0:00:07.3]} 60. Kc2 {[%clk 0:00:14.2]} 60... Ra1 {[%clk
0:00:07]} 61. Kb2 {[%clk 0:00:14.7]} 61... Re1 {[%clk 0:00:07]} 62. Re5 {[%clk
0:00:15.2]} 62... c6 {[%clk 0:00:06.4]} 63. Kb3 {[%clk 0:00:13.7]} 63... Rb1+
{[%clk 0:00:06.4]} 64. Kc2 {[%clk 0:00:14.3]} 64... Ra1 {[%clk 0:00:06.6]} 65.
Kb2 {[%clk 0:00:14.8]} 65... Re1 {[%clk 0:00:06.6]} 66. a4 {[%clk 0:00:14.4]}
66... Re2+ {[%clk 0:00:05.8]} 67. Kb3 {[%clk 0:00:14.6]} 67... Re1 {[%clk
0:00:05.9]} 68. c5+ {[%clk 0:00:15.2]} 68... Kc7 {[%clk 0:00:05.4]} 69. Re7+
{[%clk 0:00:15.7]} 69... Kc8 {[%clk 0:00:05.5]} 70. Re6 {[%clk 0:00:16.2]} 70...
Kd7 {[%clk 0:00:05.1]} 71. Rd6+ {[%clk 0:00:16.8]} 71... Kc7 {[%clk 0:00:05.7]}
72. Rd3 {[%clk 0:00:17.2]} 72... Rb1+ {[%clk 0:00:05.7]} 73. Ka3 {[%clk
0:00:17.2]} 73... Rc1 {[%clk 0:00:05.7]} 74. Kb3 {[%clk 0:00:16.5]} 74... Rxc5
{[%clk 0:00:05.6]} 75. Rc3 {[%clk 0:00:17.2]} 75... Re5 {[%clk 0:00:06.2]} 76.
Kc2 {[%clk 0:00:12.6]} 76... Re4 {[%clk 0:00:06.8]} 77. Kb3 {[%clk 0:00:13]}
77... Kd6 {[%clk 0:00:06.8]} 78. Rd3+ {[%clk 0:00:13.3]} 78... Kc5 {[%clk
0:00:05.9]} 79. Rc3+ {[%clk 0:00:13.9]} 79... Kd5 {[%clk 0:00:06.3]} 80. Rd3+
{[%clk 0:00:14.5]} 80... Kc5 {[%clk 0:00:06.6]} 81. Ka3 {[%clk 0:00:14.8]} 81...
Kc4 {[%clk 0:00:06.1]} 82. Rb3 {[%clk 0:00:15.4]} 82... c5 {[%clk 0:00:05.9]}
83. Kb2 {[%clk 0:00:14.7]} 83... Rh4 {[%clk 0:00:04.4]} 84. Ka2 {[%clk
0:00:14.9]} 84... Rh2+ {[%clk 0:00:02.9]} 85. Ka3 {[%clk 0:00:15.5]} 85... Rh1
{[%clk 0:00:03.8]} 86. Rb5 {[%clk 0:00:14]} 86... Ra1+ {[%clk 0:00:03.6]} 87.
Kb2 {[%clk 0:00:14.6]} 87... Rxa4 {[%clk 0:00:04.3]} 88. Rb8 {[%clk 0:00:09.8]}
88... Rb4+ {[%clk 0:00:05.2]} 89. Rxb4+ {[%clk 0:00:09.5]} 89... axb4 {[%clk
0:00:06.1]} 90. e4 {[%clk 0:00:10]} 90... Kd4 {[%clk 0:00:05.7]} 91. e5 {[%clk
0:00:10.9]} 91... Kxe5 {[%clk 0:00:06]} 0-1

[Event "Late-Titled-Tuesday-Blitz-February-13-2024"]
[Site "Chess.com"]
[Date "2024.02.13"]
[Round "2"]
[White "BabageldiAnnaberdiyev"]
[Black "romulocardoso"]
[Result "1-0"]
[WhiteElo "2655"]
[BlackElo "2356"]
[TimeControl "180+1"]
[EndTime "14:11:18 PST"]
[Termination "BabageldiAnnaberdiyev won by checkmate"]

1. e4 {[%clk 0:03:00.9]} 1... c5 {[%clk 0:03:00.3]} 2. Nf3 {[%clk 0:02:58.2]}
2... g6 {[%clk 0:03:00.6]} 3. d4 {[%clk 0:02:54.8]} 3... cxd4 {[%clk 0:03:01.5]}
4. Qxd4 {[%clk 0:02:55]} 4... Nf6 {[%clk 0:03:01.5]} 5. e5 {[%clk 0:02:49.6]}
5... Nc6 {[%clk 0:03:01.8]} 6. Qh4 {[%clk 0:02:49.3]} 6... Nd5 {[%clk
0:03:02.1]} 7. Bc4 {[%clk 0:02:48.1]} 7... Nb6 {[%clk 0:02:58.7]} 8. Bb3 {[%clk
0:02:48.1]} 8... Bg7 {[%clk 0:02:57.9]} 9. Bh6 {[%clk 0:02:48.7]} 9... Bxe5
{[%clk 0:02:52.5]} 10. Nxe5 {[%clk 0:02:47.8]} 10... Nxe5 {[%clk 0:02:53.4]} 11.
Bg7 {[%clk 0:02:47.7]} 11... g5 {[%clk 0:02:44.4]} 12. Qxg5 {[%clk 0:02:44.2]}
12... Rg8 {[%clk 0:02:43.7]} 13. Qxe5 {[%clk 0:02:43.7]} 13... f6 {[%clk
0:02:43.1]} 14. Qh5# {[%clk 0:02:43.4]} 1-0

[Event "Late-Titled-Tuesday-Blitz-February-13-2024"]
[Site "Chess.com"]
[Date "2024.02.13"]
[Round "2"]
[White "MikeSailer"]
[Black "ClayK1ng"]
[Result "1-0"]
[WhiteElo "2204"]
[BlackElo "2456"]
[TimeControl "180+1"]
[EndTime "14:11:39 PST"]
[Termination "MikeSailer won by resignation"]

1. d4 {[%clk 0:03:00.3]} 1... Nf6 {[%clk 0:03:00]} 2. Nf3 {[%clk 0:03:00.9]}
2... c5 {[%clk 0:03:00.5]} 3. Bf4 {[%clk 0:02:56.3]} 3... cxd4 {[%clk
0:02:59.4]} 4. Bxb8 {[%clk 0:02:56.7]} 4... Rxb8 {[%clk 0:02:59.4]} 5. Qxd4
{[%clk 0:02:57.1]} 5... b6 {[%clk 0:02:56.8]} 6. Nc3 {[%clk 0:02:57.3]} 6... Bb7
{[%clk 0:02:53.3]} 7. e4 {[%clk 0:02:56.7]} 7... d6 {[%clk 0:02:46.3]} 8. Bb5+
{[%clk 0:02:51.7]} 8... Nd7 {[%clk 0:02:45.4]} 9. O-O-O {[%clk 0:02:41.3]} 9...
e5 {[%clk 0:02:41.6]} 10. Nxe5 {[%clk 0:02:29.1]} 10... dxe5 {[%clk 0:02:35.7]}
11. Bxd7+ {[%clk 0:02:23.9]} 1-0

[Event "Late-Titled-Tuesday-Blitz-February-13-2024"]
[Site "Chess.com"]
[Date "2024.02.13"]
[Round "2"]
[White "Flaccidmoves"]
[Black "akanga001"]
[Result "1-0"]
[WhiteElo "2415"]
[BlackElo "2011"]
[TimeControl "180+1"]
[EndTime "14:12:04 PST"]
[Termination "Flaccidmoves won by resignation"]

1. c4 {[%clk 0:03:00.9]} 1... c5 {[%clk 0:02:54.5]} 2. Nc3 {[%clk 0:03:00.5]}
2... b6 {[%clk 0:02:54.3]} 3. e4 {[%clk 0:02:55.8]} 3... Bb7 {[%clk 0:02:50.4]}
4. Nf3 {[%clk 0:02:56]} 4... d6 {[%clk 0:02:50.9]} 5. d4 {[%clk 0:02:55.9]} 5...
cxd4 {[%clk 0:02:50.3]} 6. Nxd4 {[%clk 0:02:56.8]} 6... a6 {[%clk 0:02:50.7]} 7.
Bd3 {[%clk 0:02:56]} 7... e6 {[%clk 0:02:51.1]} 8. O-O {[%clk 0:02:55.6]} 8...
g6 {[%clk 0:02:51.4]} 9. f4 {[%clk 0:02:55]} 9... Bg7 {[%clk 0:02:51.4]} 10. Be3
{[%clk 0:02:53.8]} 10... Nd7 {[%clk 0:02:47]} 11. f5 {[%clk 0:02:53.8]} 11...
Ne5 {[%clk 0:02:46]} 12. fxe6 {[%clk 0:02:53]} 12... Nf6 {[%clk 0:02:37.7]} 13.
exf7+ {[%clk 0:02:51.9]} 13... Kxf7 {[%clk 0:02:35.1]} 14. Nd5 {[%clk
0:02:50.1]} 14... Bxd5 {[%clk 0:02:34.8]} 15. cxd5 {[%clk 0:02:48.6]} 15... Re8
{[%clk 0:02:29]} 16. Ne6 {[%clk 0:02:48.3]} 16... Qd7 {[%clk 0:02:28.4]} 17. Bd4
{[%clk 0:02:47.8]} 17... Nxd3 {[%clk 0:02:23.3]} 18. Qxd3 {[%clk 0:02:47]} 18...
Kg8 {[%clk 0:02:22.1]} 19. Nxg7 {[%clk 0:02:46.5]} 19... Rxe4 {[%clk 0:02:15.2]}
20. Bxf6 {[%clk 0:02:45.2]} 1-0

[Event "Late-Titled-Tuesday-Blitz-February-13-2024"]
[Site "Chess.com"]
[Date "2024.02.13"]
[Round "2"]
[White "mishanick"]
[Black "LogoCzar"]
[Result "1-0"]
[WhiteElo "2973"]
[BlackElo "2395"]
[TimeControl "180+1"]
[EndTime "14:12:30 PST"]
[Termination "mishanick won by checkmate"]

1. d4 {[%clk 0:02:57.9]} 1... Nf6 {[%clk 0:02:58.9]} 2. c4 {[%clk 0:02:58.6]}
2... e5 {[%clk 0:02:58.8]} 3. dxe5 {[%clk 0:02:58.5]} 3... Ne4 {[%clk
0:02:58.8]} 4. a3 {[%clk 0:02:58.3]} 4... d6 {[%clk 0:02:58.5]} 5. Qc2 {[%clk
0:02:57.2]} 5... Bf5 {[%clk 0:02:58.2]} 6. Nc3 {[%clk 0:02:52]} 6... Ng3 {[%clk
0:02:52.8]} 7. e4 {[%clk 0:02:52]} 7... Nxh1 {[%clk 0:02:48.8]} 8. exf5 {[%clk
0:02:51.9]} 8... dxe5 {[%clk 0:02:48.9]} 9. g3 {[%clk 0:02:41.3]} 9... Nc6
{[%clk 0:02:48]} 10. Bg2 {[%clk 0:02:41.5]} 10... Nd4 {[%clk 0:02:48]} 11. Qa4+
{[%clk 0:02:41.8]} 11... c6 {[%clk 0:02:43.2]} 12. Bxh1 {[%clk 0:02:39.6]} 12...
Nxf5 {[%clk 0:02:36.9]} 13. Bxc6+ {[%clk 0:02:35.5]} 13... bxc6 {[%clk
0:02:36.6]} 14. Qxc6+ {[%clk 0:02:36.4]} 14... Qd7 {[%clk 0:02:33.1]} 15. Qxa8+
{[%clk 0:02:36.3]} 15... Ke7 {[%clk 0:02:33.1]} 16. Nd5+ {[%clk 0:02:37]} 16...
Ke6 {[%clk 0:02:33]} 17. Nf3 {[%clk 0:02:36.2]} 17... Bb4+ {[%clk 0:02:31.7]}
18. axb4 {[%clk 0:02:31.9]} 18... Rxa8 {[%clk 0:02:29.6]} 19. Ng5+ {[%clk
0:02:31]} 19... Kd6 {[%clk 0:02:27.6]} 20. Ra6+ {[%clk 0:02:31.2]} 20... Qc6
{[%clk 0:02:21.6]} 21. Nxf7+ {[%clk 0:02:31.8]} 21... Ke6 {[%clk 0:02:18.7]} 22.
Rxc6+ {[%clk 0:02:31.2]} 22... Kxf7 {[%clk 0:02:18.7]} 23. Rc7+ {[%clk
0:02:31.2]} 23... Ke6 {[%clk 0:02:16]} 24. Be3 {[%clk 0:02:31.8]} 24... Nxe3
{[%clk 0:02:15.7]} 25. fxe3 {[%clk 0:02:31.9]} 25... a5 {[%clk 0:02:15.5]} 26.
e4 {[%clk 0:02:31.8]} 26... axb4 {[%clk 0:02:14.9]} 27. c5 {[%clk 0:02:32.4]}
27... b3 {[%clk 0:02:14.6]} 28. Re7# {[%clk 0:02:32.2]} 1-0